fUST/lending_fUST_20240611
["ID","MTS","AMOUNT","RATE_DAILY","PERIOD"]
[329020254,1718064641899,-500.0,0.00019178,2]
[329020255,1718064641908,-500.0,0.00019178,2]
[329020256,1718064641919,-500.0,0.00019178,2]
[329020257,1718064641928,-500.0,0.00019178,2]
[329020258,1718064641939,-510.61121669,0.00019178,2]
[329020259,1718064641949,-500.0,0.00019178,2]
[329020260,1718064641959,-500.0,0.00019178,2]
[329020261,1718064641969,-500.0,0.00019178,2]
[329020262,1718064641979,-500.0,0.00019178,2]
[329020263,1718064641990,-500.0,0.00019178,2]
[329020264,1718064642000,-500.0,0.00019178,2]
[329020265,1718064642010,-670.38,0.00019178,2]
[329020266,1718064642021,-500.0,0.00019178,2]
[329020267,1718064642032,-500.0,0.00019178,2]
[329020268,1718064642045,-500.0,0.00019178,2]
[329020269,1718064642055,-500.0,0.00019178,2]
[329020270,1718064642067,-500.0,0.00019178,2]
[329020271,1718064642078,-500.0,0.00019178,2]
[329020272,1718064642088,-500.0,0.00019178,2]
[329020273,1718064642099,-500.0,0.00019178,2]
[329020274,1718064642109,-500.0,0.00019178,2]
[329020275,1718064642120,-500.0,0.00019178,2]
[329020276,1718064642131,-500.0,0.00019178,2]
[329020277,1718064642142,-500.0,0.00019178,2]
[329020278,1718064642154,-500.0,0.00019178,2]
[329020279,1718064642166,-500.0,0.00019178,2]
[329020280,1718064642177,-500.0,0.00019178,2]
[329020281,1718064642187,-500.0,0.00019178,2]
[329020282,1718064642199,-385.0,0.00019178,2]
[329020283,1718064642210,-500.0,0.00019178,2]
[329020284,1718064642220,-293.58,0.00019178,2]
[329020285,1718064642232,-1995.41,0.00019178,2]
[329020286,1718064642242,-500.0,0.00019178,2]
[329020287,1718064642253,-500.0,0.00019178,2]
[329020288,1718064642265,-500.0,0.00019178,2]
[329020289,1718064642276,-500.0,0.00019178,2]
[329020290,1718064642286,-293.90340175,0.00019178,2]
[329020291,1718064642298,-500.0,0.00019178,2]
[329020292,1718064642308,-500.0,0.00019178,2]
[329020293,1718064642318,-500.0,0.00019178,2]
[329020294,1718064642328,-500.0,0.00019178,2]
[329020295,1718064642339,-500.0,0.00019178,2]
[329020296,1718064642350,-353.66231977,0.00019178,2]
[329020297,1718064642361,-500.0,0.00019178,2]
[329020298,1718064642371,-500.0,0.00019178,2]
[329020299,1718064642382,-500.0,0.00019178,2]
[329020300,1718064642392,-500.0,0.00019178,2]
[329020301,1718064642403,-158.10856919,0.00019178,2]
[329020302,1718064642418,-500.0,0.00019178,2]
[329020304,1718064642429,-778.56,0.00019178,2]
[329020306,1718064642440,-500.0,0.00019178,2]
[329020309,1718064642451,-500.0,0.00019178,2]
[329020311,1718064642463,-3534.03,0.00019178,2]
[329020313,1718064642475,-500.0,0.00019178,2]
[329020315,1718064642485,-222.50220775,0.00019178,2]
[329020317,1718064642496,-500.0,0.00019178,2]
[329020318,1718064642507,-500.0,0.00019178,2]
[329020319,1718064642517,-500.0,0.00019178,2]
[329020320,1718064642527,-419.64833046,0.00019178,2]
[329020321,1718064642538,-500.0,0.00019178,2]
[329020322,1718064642550,-500.0,0.00019178,2]
[329020323,1718064642565,-500.0,0.00019178,2]
[329020324,1718064642579,-591.32068172,0.00019178,2]
[329020325,1718064642589,-384.48001142,0.00019178,2]
[329020326,1718064642600,-500.0,0.00019178,2]
[329020327,1718064642612,-500.0,0.00019178,2]
[329020328,1718064642622,-500.0,0.00019178,2]
[329020329,1718064642633,-500.0,0.00019178,2]
[329020330,1718064642645,-500.0,0.00019178,2]
[329020331,1718064642655,-1067.36,0.00019178,2]
[329020332,1718064642666,-500.0,0.00019178,2]
[329020333,1718064642676,-633.32,0.00019178,2]
[329020334,1718064642687,-517.12899535,0.00019178,2]
[329020335,1718064642698,-500.0,0.00019178,2]
[329020336,1718064642709,-500.0,0.00019178,2]
[329020337,1718064642720,-768.11,0.00019178,2]
[329020338,1718064642731,-500.0,0.00019178,2]
[329020339,1718064642741,-500.0,0.00019178,2]
[329020340,1718064642754,-500.0,0.00019178,2]
[329020341,1718064642765,-500.0,0.00019178,2]
[329020342,1718064642778,-1000.0,0.00019178,2]
[329020343,1718064642789,-505.46,0.00019178,2]
[329020344,1718064642802,-500.0,0.00019178,2]
[329020346,1718064642814,-500.0,0.00019178,2]
[329020348,1718064642824,-500.0,0.00019178,2]
[329020350,1718064642835,-500.0,0.00019178,2]
[329020352,1718064642845,-500.0,0.00019178,2]
[329020353,1718064642856,-500.0,0.00019178,2]
[329020356,1718064642869,-534.68601231,0.00019178,2]
[329020357,1718064642879,-500.0,0.00019178,2]
[329020358,1718064642890,-500.0,0.00019178,2]
[329020359,1718064642901,-3086.66,0.00019178,2]
[329020360,1718064642912,-500.0,0.00019178,2]
[329020361,1718064642922,-380.53537634,0.00019178,2]
[329020362,1718064642933,-500.0,0.00019178,2]
[329020363,1718064642945,-500.0,0.00019178,2]
[329020364,1718064642956,-500.0,0.00019178,2]
[329020365,1718064642966,-500.0,0.00019178,2]
[329020366,1718064642978,-500.0,0.00019178,2]
[329020367,1718064642989,-500.0,0.00019178,2]
[329020369,1718064642999,-500.0,0.00019178,2]
[329020370,1718064643012,-1891.61,0.00019178,2]
[329020371,1718064643025,-500.0,0.00019178,2]
[329020372,1718064643038,-2429.34,0.00019178,2]
[329020373,1718064643052,-500.0,0.00019178,2]
[329020374,1718064643062,-500.0,0.00019178,2]
[329020375,1718064643072,-500.0,0.00019178,2]
[329020376,1718064643084,-500.0,0.00019178,2]
[329020377,1718064643095,-500.0,0.00019178,2]
[329020378,1718064643106,-505.32988494,0.00019178,2]
[329020379,1718064643117,-514.89883152,0.00019178,2]
[329020380,1718064643129,-574.19,0.00019178,2]
[329020381,1718064643140,-504.76374757,0.00019178,2]
[329020382,1718064643150,-500.0,0.00019178,2]
[329020383,1718064643162,-500.0,0.00019178,2]
[329020384,1718064643173,-1529.76,0.00019178,2]
[329020385,1718064643184,-500.0,0.00019178,2]
[329020386,1718064643195,-500.0,0.00019178,2]
[329020387,1718064643208,-500.0,0.00019178,2]
[329020388,1718064643218,-500.0,0.00019178,2]
[329020389,1718064643229,-500.0,0.00019178,2]
[329020390,1718064643239,-500.0,0.00019178,2]
[329020392,1718064643251,-500.0,0.00019178,2]
[329020393,1718064643261,-500.35519369,0.00019178,2]
[329020395,1718064643272,-500.0,0.00019178,2]
[329020397,1718064643283,-500.0,0.00019178,2]
[329020399,1718064643296,-500.0,0.00019178,2]
[329020400,1718064643306,-500.0,0.00019178,2]
[329020402,1718064643317,-500.0,0.00019178,2]
[329020403,1718064643328,-320.37326884,0.00019178,2]
[329020404,1718064643338,-500.0,0.00019178,2]
[329020405,1718064643350,-1532.31,0.00019178,2]
[329020406,1718064643366,-500.0,0.00019178,2]
[329020407,1718064643377,-500.0,0.00019178,2]
[329020408,1718064643389,-4375.49,0.00019178,2]
[329020409,1718064643399,-500.0,0.00019178,2]
[329020410,1718064643413,-500.0,0.00019178,2]
[329020411,1718064643425,-402.60994263,0.00019178,7]
[329020412,1718064643437,-160.194329,0.00019178,2]
[329020413,1718064643452,-160.194329,0.00019178,2]
[329020414,1718064643472,-582.01690059,0.00019214,2]
[329020415,1718064643483,-582.01690059,0.00019283,2]
[329020416,1718064643494,-500.0,0.00019311,2]
[329020417,1718064643505,-500.0,0.00019311,2]
[329020418,1718064643521,-582.01690059,0.00019352,2]
[329020419,1718064643533,-1000.55862774,0.00019352,2]
[329020420,1718064643545,-420.0,0.00019449,2]
[329020421,1718064643556,-500.0,0.00019451,2]
[329020422,1718064643572,-500.0,0.00019451,2]
[329020423,1718064643583,-500.0,0.00019451,2]
[329020424,1718064643594,-500.0,0.00019451,2]
[329020426,1718064643605,-500.0,0.00019452,2]
[329020427,1718064643616,-500.0,0.00019452,2]
[329020429,1718064643627,-500.0,0.00019452,2]
[329020431,1718064643639,-500.0,0.00019452,2]
[329020434,1718064643656,-500.0,0.00019452,2]
[329020436,1718064643666,-500.0,0.00019452,2]
[329020438,1718064643678,-500.0,0.00019452,2]
[329020440,1718064643688,-326.32951612,0.00019452,2]
[329020442,1718064643699,-500.0,0.00019452,2]
[329020444,1718064643711,-500.0,0.00019452,2]
[329020446,1718064643723,-500.0,0.00019452,2]
[329020448,1718064643737,-500.0,0.00019452,2]
[329020450,1718064643750,-500.0,0.00019452,2]
[329020452,1718064643761,-224.54,0.00019452,2]
[329020454,1718064643772,-500.0,0.00019452,2]
[329020456,1718064643787,-511.35,0.00019452,2]
[329020458,1718064643800,-505.02012683,0.00019452,2]
[329020460,1718064643812,-500.0,0.00019452,2]
[329020462,1718064643822,-500.0,0.00019452,2]
[329020464,1718064643834,-500.0,0.00019452,2]
[329020466,1718064643845,-500.0,0.00019452,2]
[329020468,1718064643857,-500.0,0.00019452,2]
[329020470,1718064643870,-500.0,0.00019452,2]
[329020473,1718064643881,-522.58005168,0.00019452,2]
[329020475,1718064643892,-500.0,0.00019452,2]
[329020477,1718064643903,-500.0,0.00019452,2]
[329020478,1718064643914,-500.0,0.00019452,2]
[329020480,1718064643925,-500.0,0.00019452,2]
[329020482,1718064643936,-500.0,0.00019452,2]
[329020485,1718064643949,-500.0,0.00019452,2]
[329020486,1718064643960,-500.0,0.00019452,2]
[329020488,1718064643971,-500.0,0.00019452,2]
[329020490,1718064643983,-500.0,0.00019452,2]
[329020492,1718064643994,-500.0,0.00019452,2]
[329020494,1718064644005,-500.0,0.00019452,2]
[329020496,1718064644016,-500.0,0.00019452,2]
[329020498,1718064644027,-500.0,0.00019452,2]
[329020500,1718064644038,-500.0,0.00019452,2]
[329020502,1718064644050,-500.0,0.00019452,2]
[329020504,1718064644061,-500.0,0.00019452,2]
[329020506,1718064644072,-500.0,0.00019452,2]
[329020508,1718064644083,-500.0,0.00019452,2]
[329020510,1718064644093,-500.0,0.00019452,2]
[329020512,1718064644106,-500.0,0.00019452,2]
[329020514,1718064644119,-500.0,0.00019452,2]
[329020516,1718064644131,-348.90656432,0.00019452,2]
[329020518,1718064644142,-500.0,0.00019452,2]
[329020520,1718064644153,-500.0,0.00019452,2]
[329020522,1718064644164,-500.0,0.00019452,2]
[329020524,1718064644175,-535.18,0.00019452,2]
[329020526,1718064644186,-500.0,0.00019452,2]
[329020528,1718064644200,-500.0,0.00019452,2]
[329020530,1718064644211,-500.0,0.00019452,2]
[329020532,1718064644221,-500.0,0.00019452,2]
[329020534,1718064644233,-500.0,0.00019452,2]
[329020536,1718064644244,-500.0,0.00019452,2]
[329020538,1718064644255,-500.0,0.00019452,2]
[329020540,1718064644266,-500.0,0.00019452,2]
[329020542,1718064644277,-500.0,0.00019452,2]
[329020544,1718064644288,-500.0,0.00019452,2]
[329020546,1718064644302,-500.0,0.00019452,2]
[329020549,1718064644316,-500.0,0.00019452,2]
[329020551,1718064644328,-500.0,0.00019452,2]
[329020553,1718064644339,-500.0,0.00019452,2]
[329020555,1718064644351,-500.0,0.00019452,2]
[329020557,1718064644362,-159.265594,0.00019452,2]
[329020559,1718064644374,-500.0,0.00019452,2]
[329020561,1718064644385,-500.0,0.00019452,2]
[329020563,1718064644395,-657.29,0.00019452,2]
[329020565,1718064644407,-470.20207243,0.00019452,2]
[329020567,1718064644419,-500.0,0.00019452,2]
[329020569,1718064644432,-500.0,0.00019452,2]
[329020571,1718064644444,-500.0,0.00019452,2]
[329020573,1718064644455,-644.18683418,0.00019452,2]
[329020575,1718064644467,-151.0,0.00019452,2]
[329020577,1718064644480,-151.0,0.00019452,2]
[329020579,1718064644491,-207.19361884,0.00019452,2]
[329020581,1718064644504,-500.0,0.00019452,2]
[329020583,1718064644516,-602.11,0.00019452,2]
[329020585,1718064644529,-500.0,0.00019452,2]
[329020587,1718064644541,-500.0,0.00019452,2]
[329020589,1718064644557,-500.0,0.00019452,2]
[329020591,1718064644573,-500.0,0.00019452,2]
[329020593,1718064644589,-500.0,0.00019452,2]
[329020595,1718064644600,-151.0,0.00019452,2]
[329020597,1718064644611,-500.0,0.00019452,2]
[329020599,1718064644624,-500.0,0.00019452,2]
[329020601,1718064644635,-383.51956065,0.00019452,2]
[329020603,1718064644647,-500.0,0.00019452,2]
[329020605,1718064644658,-151.0,0.00019452,2]
[329020607,1718064644669,-500.0,0.00019452,2]
[329020609,1718064644680,-500.0,0.00019452,2]
[329020611,1718064644692,-500.0,0.00019452,2]
[329020613,1718064644703,-500.0,0.00019452,2]
[329020615,1718064644716,-500.0,0.00019452,2]
[329020617,1718064644727,-598.22900202,0.00019452,2]
[329020618,1718064644738,-500.0,0.00019452,2]
[329020621,1718064644751,-500.0,0.00019452,2]
[329020622,1718064644761,-151.0,0.00019452,2]
[329020624,1718064644772,-500.0,0.00019452,2]
[329020626,1718064644783,-670.38,0.00019452,2]
[329020629,1718064644797,-500.0,0.00019452,2]
[329020630,1718064644807,-500.0,0.00019452,2]
[329020633,1718064644819,-500.0,0.00019452,2]
[329020635,1718064644837,-500.0,0.00019452,2]
[329020637,1718064644848,-500.0,0.00019452,2]
[329020639,1718064644859,-500.0,0.00019452,2]
[329020641,1718064644869,-500.0,0.00019452,2]
[329020643,1718064644881,-1995.41,0.00019452,2]
[329020645,1718064644892,-500.0,0.00019452,2]
[329020647,1718064644903,-500.0,0.00019452,2]
[329020649,1718064644917,-500.0,0.00019452,2]
[329020651,1718064644929,-500.0,0.00019452,2]
[329020653,1718064644940,-778.56,0.00019452,2]
[329020655,1718064644952,-500.0,0.00019452,2]
[329020657,1718064644965,-3534.03,0.00019452,2]
[329020660,1718064644976,-393.98501894,0.00019452,2]
[329020661,1718064644987,-500.0,0.00019452,2]
[329020663,1718064645000,-500.0,0.00019452,2]
[329020665,1718064645014,-151.0,0.00019452,2]
[329020667,1718064645028,-500.0,0.00019452,2]
[329020677,1718064645051,-516.68,0.00019452,2]
[329020679,1718064645167,-500.0,0.00019452,2]
[329020681,1718064645191,-1067.36,0.00019452,2]
[329020683,1718064645205,-633.32,0.00019452,2]
[329020685,1718064645217,-500.0,0.00019452,2]
[329020687,1718064645230,-768.11,0.00019452,2]
[329020689,1718064645242,-500.0,0.00019452,2]
[329020691,1718064645255,-500.0,0.00019452,2]
[329020693,1718064645268,-500.0,0.00019452,2]
[329020695,1718064645281,-505.46,0.00019452,2]
[329020697,1718064645293,-500.0,0.00019452,2]
[329020699,1718064645306,-500.0,0.00019452,2]
[329020701,1718064645323,-3086.66,0.00019452,2]
[329020704,1718064645339,-500.0,0.00019452,2]
[329020706,1718064645356,-500.0,0.00019452,2]
[329020708,1718064645368,-500.0,0.00019452,2]
[329020710,1718064645381,-500.0,0.00019452,2]
[329020712,1718064645394,-500.0,0.00019452,2]
[329020714,1718064645405,-1891.61,0.00019452,2]
[329020716,1718064645424,-2429.34,0.00019452,2]
[329020718,1718064645436,-500.0,0.00019452,2]
[329020720,1718064645449,-500.0,0.00019452,2]
[329020723,1718064645465,-500.0,0.00019452,2]
[329020725,1718064645482,-500.0,0.00019452,2]
[329020727,1718064645496,-574.19,0.00019452,2]
[329020729,1718064645508,-500.0,0.00019452,2]
[329020730,1718064645526,-1529.76,0.00019452,2]
[329020733,1718064645548,-500.0,0.00019452,2]
[329020735,1718064645567,-500.0,0.00019452,2]
[329020737,1718064645579,-151.0,0.00019452,2]
[329020738,1718064645598,-151.0,0.00019452,2]
[329020740,1718064645612,-260.06252,0.00019452,2]
[329020742,1718064645624,-500.0,0.00019452,2]
[329020744,1718064645636,-500.0,0.00019452,2]
[329020746,1718064645651,-500.0,0.00019452,2]
[329020748,1718064645661,-1532.31,0.00019452,2]
[329020750,1718064645672,-500.0,0.00019452,2]
[329020752,1718064645683,-4375.49,0.00019452,2]
[329020754,1718064645693,-500.0,0.00019452,2]
[329020756,1718064645704,-4213.0,0.000196,2]
[329020758,1718064645714,-30000.0,0.000197,2]
[329020760,1718064645724,-151.0,0.000197,2]
[329020762,1718064645735,-151.0,0.000197,2]
[329020764,1718064645746,-151.0,0.000197,2]
[329020766,1718064645757,-173.645941,0.000197,2]
[329020768,1718064645768,-620.07319444,0.00019712,2]
[329020770,1718064645779,-500.0,0.00019725,2]
[329020772,1718064645789,-580.69,0.00019725,2]
[329020774,1718064645801,-500.0,0.00019725,2]
[329020776,1718064645812,-500.0,0.00019726,2]
[329020778,1718064645823,-500.0,0.00019726,2]
[329020780,1718064645835,-500.0,0.00019726,2]
[329020782,1718064645845,-617.26,0.00019726,2]
[329020784,1718064645856,-500.0,0.00019726,2]
[329020786,1718064645866,-511.35,0.00019726,2]
[329020788,1718064645877,-500.0,0.00019726,2]
[329020790,1718064645888,-500.0,0.00019726,2]
[329020792,1718064645900,-405.07163042,0.00019726,2]
[329020794,1718064645913,-500.0,0.00019726,2]
[329020796,1718064645924,-500.0,0.00019726,2]
[329020798,1718064645935,-500.0,0.00019726,2]
[329020800,1718064645946,-500.0,0.00019726,2]
[329020802,1718064645956,-151.0,0.00019726,2]
[329020804,1718064645967,-500.0,0.00019726,2]
[329020806,1718064645978,-500.0,0.00019726,2]
[329020808,1718064645988,-500.0,0.00019726,2]
[329020810,1718064646000,-500.0,0.00019726,2]
[329020812,1718064646011,-500.0,0.00019726,2]
[329020814,1718064646022,-500.0,0.00019726,2]
[329020816,1718064646033,-500.0,0.00019726,2]
[329020818,1718064646046,-500.0,0.00019726,2]
[329020820,1718064646057,-500.0,0.00019726,2]
[329020822,1718064646068,-500.0,0.00019726,2]
[329020824,1718064646081,-500.0,0.00019726,2]
[329020826,1718064646093,-500.0,0.00019726,2]
[329020828,1718064646105,-500.0,0.00019726,2]
[329020830,1718064646115,-500.0,0.00019726,2]
[329020832,1718064646126,-500.0,0.00019726,2]
[329020834,1718064646138,-500.0,0.00019726,2]
[329020836,1718064646148,-500.0,0.00019726,2]
[329020838,1718064646159,-500.0,0.00019726,2]
[329020840,1718064646170,-657.29,0.00019726,2]
[329020842,1718064646180,-500.0,0.00019726,2]
[329020844,1718064646191,-500.0,0.00019726,2]
[329020846,1718064646201,-500.0,0.00019726,2]
[329020848,1718064646212,-500.0,0.00019726,2]
[329020850,1718064646224,-602.11,0.00019726,2]
[329020852,1718064646235,-500.0,0.00019726,2]
[329020854,1718064646246,-500.0,0.00019726,2]
[329020856,1718064646256,-500.0,0.00019726,2]
[329020858,1718064646267,-500.0,0.00019726,2]
[329020860,1718064646278,-500.0,0.00019726,2]
[329020861,1718064646289,-500.0,0.00019726,2]
[329020863,1718064646302,-500.0,0.00019726,2]
[329020865,1718064646313,-500.0,0.00019726,2]
[329020867,1718064646324,-500.0,0.00019726,2]
[329020869,1718064646339,-500.0,0.00019726,2]
[329020871,1718064646354,-265.17632405,0.00019726,2]
[329020873,1718064646369,-670.38,0.00019726,2]
[329020875,1718064646380,-500.0,0.00019726,2]
[329020877,1718064646391,-500.0,0.00019726,2]
[329020878,1718064646401,-500.0,0.00019726,2]
[329020879,1718064646412,-500.0,0.00019726,2]
[329020880,1718064646424,-500.0,0.00019726,2]
[329020881,1718064646435,-500.0,0.00019726,2]
[329020882,1718064646447,-1995.41,0.00019726,2]
[329020883,1718064646458,-500.0,0.00019726,2]
[329020884,1718064646471,-500.0,0.00019726,2]
[329020885,1718064646482,-500.0,0.00019726,2]
[329020886,1718064646492,-778.56,0.00019726,2]
[329020887,1718064646504,-3534.03,0.00019726,2]
[329020888,1718064646516,-500.0,0.00019726,2]
[329020889,1718064646527,-500.0,0.00019726,2]
[329020890,1718064646538,-1067.36,0.00019726,2]
[329020891,1718064646549,-633.32,0.00019726,2]
[329020892,1718064646561,-500.0,0.00019726,2]
[329020893,1718064646575,-768.11,0.00019726,2]
[329020894,1718064646586,-500.0,0.00019726,2]
[329020897,1718064646598,-500.0,0.00019726,2]
[329020898,1718064646608,-505.46,0.00019726,2]
[329020901,1718064646619,-500.0,0.00019726,2]
[329020902,1718064646630,-500.0,0.00019726,2]
[329020904,1718064646641,-3086.66,0.00019726,2]
[329020906,1718064646652,-500.0,0.00019726,2]
[329020908,1718064646662,-500.0,0.00019726,2]
[329020911,1718064646673,-500.0,0.00019726,2]
[329020913,1718064646683,-500.0,0.00019726,2]
[329020915,1718064646693,-1891.61,0.00019726,2]
[329020916,1718064646704,-2429.34,0.00019726,2]
[329020918,1718064646714,-500.0,0.00019726,2]
[329020920,1718064646724,-500.0,0.00019726,2]
[329020922,1718064646734,-500.0,0.00019726,2]
[329020924,1718064646744,-574.19,0.00019726,2]
[329020926,1718064646754,-500.0,0.00019726,2]
[329020928,1718064646764,-1529.76,0.00019726,2]
[329020930,1718064646774,-500.0,0.00019726,2]
[329020932,1718064646785,-500.0,0.00019726,2]
[329020934,1718064646797,-500.0,0.00019726,2]
[329020936,1718064646808,-1532.31,0.00019726,2]
[329020938,1718064646818,-232.29611718,0.00019726,2]
[329020940,1718064646828,-4375.49,0.00019726,2]
[329020942,1718064646839,-4239.03743968,0.00019757,2]
[329020945,1718064646851,-151.0,0.00019875,2]
[329020947,1718064646862,-151.0,0.00019875,2]
[329020949,1718064646872,-5804.99285977,0.00019972,15]
[329020951,1718064646883,-30000.0,0.00019972,2]
[329020953,1718064646893,-151.0,0.00019972,2]
[329020954,1718064646904,-1354.89851007,0.00019998,2]
[329020956,1718064646915,-500.0,0.00019998,2]
[329020958,1718064646926,-500.0,0.00019999,2]
[329020960,1718064646937,-1103.37197472,0.0002,2]
[329020962,1718064646947,-500.0,0.0002,2]
[329020964,1718064646957,-151.0,0.0002,2]
[329020966,1718064646967,-511.35,0.0002,2]
[329020968,1718064646978,-151.0,0.0002,2]
[329020970,1718064646989,-500.0,0.0002,2]
[329020972,1718064647000,-500.0,0.0002,2]
[329020974,1718064647010,-500.0,0.0002,2]
[329020976,1718064647021,-500.0,0.0002,2]
[329020978,1718064647031,-500.0,0.0002,2]
[329020980,1718064647041,-500.0,0.0002,2]
[329020982,1718064647053,-500.0,0.0002,2]
[329020984,1718064647063,-500.0,0.0002,2]
[329020986,1718064647074,-243.68,0.0002,2]
[329020988,1718064647084,-500.0,0.0002,2]
[329020989,1718064647095,-500.0,0.0002,2]
[329020991,1718064647105,-500.0,0.0002,2]
[329020993,1718064647116,-500.0,0.0002,2]
[329020995,1718064647126,-500.0,0.0002,2]
[329020998,1718064647137,-500.0,0.0002,2]
[329020999,1718064647147,-500.0,0.0002,2]
[329021001,1718064647157,-254.0,0.0002,2]
[329021003,1718064647168,-657.29,0.0002,2]
[329021005,1718064647178,-500.0,0.0002,2]
[329021007,1718064647188,-506.94979493,0.0002,2]
[329021009,1718064647199,-151.0,0.0002,2]
[329021011,1718064647209,-602.11,0.0002,2]
[329021013,1718064647220,-500.0,0.0002,2]
[329021015,1718064647231,-343.46620655,0.0002,2]
[329021017,1718064647242,-265.65153462,0.0002,2]
[329021019,1718064647252,-500.0,0.0002,2]
[329021021,1718064647263,-500.0,0.0002,2]
[329021023,1718064647273,-670.38,0.0002,2]
[329021025,1718064647284,-251.03970478,0.0002,2]
[329021027,1718064647294,-500.0,0.0002,2]
[329021029,1718064647305,-500.0,0.0002,2]
[329021031,1718064647316,-540.04,0.0002,2]
[329021033,1718064647328,-500.0,0.0002,2]
[329021035,1718064647338,-1995.41,0.0002,2]
[329021037,1718064647349,-500.0,0.0002,2]
[329021039,1718064647359,-500.0,0.0002,2]
[329021041,1718064647370,-778.56,0.0002,2]
[329021043,1718064647381,-3534.03,0.0002,2]
[329021045,1718064647392,-500.0,0.0002,2]
[329021047,1718064647402,-1067.36,0.0002,2]
[329021049,1718064647413,-633.32,0.0002,2]
[329021051,1718064647424,-768.11,0.0002,2]
[329021052,1718064647435,-500.0,0.0002,2]
[329021055,1718064647446,-505.46,0.0002,2]
[329021056,1718064647457,-626.83784362,0.0002,2]
[329021058,1718064647470,-3086.66,0.0002,2]
[329021060,1718064647481,-500.0,0.0002,2]
[329021062,1718064647491,-500.0,0.0002,2]
[329021064,1718064647502,-1891.61,0.0002,2]
[329021066,1718064647514,-2429.34,0.0002,2]
[329021068,1718064647525,-500.0,0.0002,2]
[329021070,1718064647536,-500.0,0.0002,2]
[329021072,1718064647548,-500.0,0.0002,2]
[329021074,1718064647558,-574.19,0.0002,2]
[329021076,1718064647575,-500.0,0.0002,2]
[329021078,1718064647586,-1529.76,0.0002,2]
[329021080,1718064647597,-500.0,0.0002,2]
[329021082,1718064647608,-500.0,0.0002,2]
[329021084,1718064647619,-1532.31,0.0002,2]
[329021086,1718064647630,-4375.49,0.0002,2]
[329021088,1718064647641,-500.0,0.00020109,2]
[329021090,1718064647653,-306.0,0.0002011,2]
[329021092,1718064647664,-306.0,0.0002011,2]
[329021094,1718064647675,-153.0,0.0002011,2]
[329021096,1718064647685,-292.4733043,0.0002011,2]
[329021098,1718064647696,-292.4733043,0.0002011,2]
[329021100,1718064647707,-306.0,0.0002011,2]
[329021102,1718064647718,-153.0,0.0002011,2]
[329021104,1718064647728,-153.0,0.0002011,2]
[329021106,1718064647739,-205.3053491,0.0002011,2]
[329021108,1718064647750,-292.4733043,0.0002011,2]
[329021110,1718064647761,-306.0,0.0002011,2]
[329021112,1718064647771,-306.0,0.0002011,2]